fUST/lending_fUST_20250326
["ID","MTS","AMOUNT","RATE_DAILY","PERIOD"]
[356696794,1742986151125,-500.0,0.00012052,2]
[356696795,1742986151147,-500.0,0.00012053,2]
[356696796,1742986151168,-500.0,0.00012053,2]
[356696797,1742986151190,-500.0,0.00012053,2]
[356696798,1742986151212,-500.0,0.00012053,2]
[356696799,1742986151236,-500.0,0.00012053,2]
[356696800,1742986151257,-500.0,0.00012053,2]
[356696801,1742986151280,-500.0,0.00012053,2]
[356696802,1742986151301,-500.0,0.00012053,2]
[356696803,1742986151323,-500.0,0.00012053,2]
[356696804,1742986151345,-500.0,0.00012053,2]
[356696805,1742986151367,-500.0,0.00012053,2]
[356696806,1742986151388,-500.0,0.00012053,2]
[356696807,1742986151409,-500.0,0.00012053,2]
[356696808,1742986151430,-500.0,0.00012053,2]
[356696809,1742986151451,-500.0,0.00012053,2]
[356696810,1742986151473,-500.0,0.00012053,2]
[356696811,1742986151494,-500.0,0.00012053,2]
[356696812,1742986151514,-244.99,0.00012053,2]
[356696813,1742986151537,-500.0,0.00012053,2]
[356696814,1742986151557,-500.0,0.00012053,2]
[356696815,1742986151577,-500.0,0.00012054,2]
[356696816,1742986151596,-504.11525001,0.00012137,2]
[356696817,1742986151616,-500.0,0.00012137,2]
[356696818,1742986151636,-500.0,0.00012137,2]
[356696819,1742986151656,-500.0,0.00012137,2]
[356696820,1742986151675,-500.0,0.00012137,2]
[356696821,1742986151695,-500.0,0.00012137,2]
[356696822,1742986151716,-500.0,0.00012137,2]
[356696823,1742986151737,-500.0,0.00012137,2]
[356696824,1742986151759,-500.0,0.00012137,2]
[356696825,1742986151780,-500.0,0.0001229,2]
[356696826,1742986151801,-500.0,0.0001229,2]
[356696827,1742986151822,-500.0,0.0001229,2]
[356696828,1742986151843,-327.10582028,0.0001229,2]
[356696829,1742986151863,-169.7811145,0.00012291,2]
[356696830,1742986151890,-500.0,0.00012326,2]
[356696831,1742986151912,-500.0,0.00012326,2]
[356696832,1742986151933,-500.0,0.00012327,2]
[356696833,1742986151953,-494.60495318,0.00012327,2]
[356696834,1742986151974,-278.95,0.00012327,2]
[356696835,1742986151994,-500.0,0.00012327,2]
[356696836,1742986152015,-500.0,0.00012327,2]
[356696837,1742986152036,-500.0,0.00012327,2]
[356696838,1742986152057,-500.0,0.00012327,2]
[356696839,1742986152079,-500.0,0.00012327,2]
[356696840,1742986152099,-500.0,0.00012327,2]
[356696841,1742986152119,-500.0,0.00012327,2]
[356696842,1742986152140,-500.0,0.00012327,2]
[356696843,1742986152160,-500.0,0.00012327,2]
[356696844,1742986152180,-500.0,0.00012327,2]
[356696845,1742986152200,-500.0,0.00012327,2]
[356696846,1742986152221,-500.0,0.00012327,2]
[356696847,1742986152242,-500.0,0.00012327,2]
[356696848,1742986152262,-288.8,0.00012328,2]
[356696849,1742986152283,-500.0,0.00012426,2]
[356696850,1742986152303,-500.0,0.000126,2]
[356696851,1742986152324,-441.32,0.00012601,2]
[356696852,1742986152346,-500.0,0.00012601,2]
[356696853,1742986152366,-500.0,0.00012601,2]
[356696854,1742986152387,-500.0,0.00012601,2]
[356696855,1742986152407,-500.0,0.00012601,2]
[356696856,1742986152428,-500.0,0.00012601,2]
[356696857,1742986152448,-500.0,0.00012601,2]
[356696858,1742986152468,-500.0,0.00012601,2]
[356696859,1742986152490,-500.0,0.00012601,2]
[356696860,1742986152510,-500.0,0.00012601,2]
[356696861,1742986152533,-500.0,0.00012601,2]
[356696862,1742986152553,-500.0,0.00012601,2]
[356696863,1742986152573,-500.0,0.00012601,2]
[356696864,1742986152594,-500.0,0.00012601,2]
[356696865,1742986152616,-500.0,0.00012874,2]
[356696866,1742986152636,-572.91,0.00012875,2]
[356696867,1742986152657,-500.0,0.00012875,2]
[356696868,1742986152677,-500.0,0.00012875,2]
[356696869,1742986152697,-500.0,0.00012875,2]
[356696870,1742986152717,-262.9,0.00012875,2]
[356696871,1742986152737,-500.0,0.00012875,2]
[356696872,1742986152760,-500.0,0.00012875,2]
[356696873,1742986152782,-500.0,0.00012875,2]
[356696874,1742986152901,-272.88,0.00012875,2]
[356696875,1742986152929,-500.0,0.00012875,2]
[356696876,1742986152950,-525.56100098,0.00012875,2]
[356696877,1742986152972,-548.56,0.00012875,2]
[356696878,1742986152992,-555.66,0.00012875,2]
[356696879,1742986153012,-3747.26485761,0.000129,2]
[356696880,1742986153033,-1000.52710495,0.00013026,2]
[356696881,1742986153054,-500.0,0.00013148,2]
[356696882,1742986153074,-500.0,0.00013149,2]
[356696883,1742986153095,-500.0,0.00013149,2]
[356696884,1742986153119,-500.0,0.00013149,2]
[356696885,1742986153138,-500.0,0.00013149,2]
[356696886,1742986153159,-500.0,0.00013149,2]
[356696887,1742986153179,-500.0,0.00013149,2]
[356696888,1742986153200,-500.0,0.00013149,2]
[356696889,1742986153222,-500.0,0.00013422,2]
[356696890,1742986153243,-500.0,0.00013423,2]
[356696891,1742986153263,-500.0,0.00013423,2]
[356696892,1742986153286,-500.0,0.00013423,2]
[356696893,1742986153306,-500.0,0.00013423,2]
[356696894,1742986153327,-500.0,0.00013423,2]
[356696895,1742986153348,-500.0,0.00013423,2]
[356696896,1742986153370,-500.0,0.00013423,2]
[356696897,1742986153392,-2330.73737535,0.000135,2]
[356696898,1742986153412,-2330.73737522,0.000135,2]
[356696899,1742986153433,-500.0,0.00013696,2]
[356696900,1742986153454,-500.0,0.00013697,2]
[356696901,1742986153474,-500.0,0.00013697,2]
[356696902,1742986153496,-500.0,0.00013697,2]
[356696903,1742986153516,-159.2,0.00013697,2]
[356696904,1742986153538,-500.0,0.00013697,2]
[356696905,1742986153559,-500.0,0.00013697,2]
[356696906,1742986153580,-503.64,0.00013697,2]
[356696907,1742986153603,-500.0,0.00013699,2]
[356696908,1742986153625,-500.0,0.00013699,2]
[356696909,1742986153646,-459.27369296,0.00013699,2]
[356696910,1742986153669,-500.0,0.00013699,2]
[356696911,1742986153691,-500.0,0.0001397,2]
[356696912,1742986153712,-500.0,0.00013971,2]
[356696913,1742986153732,-420.37,0.00013971,2]
[356696914,1742986153757,-500.0,0.00013971,2]
[356696915,1742986153778,-500.0,0.00013971,2]
[356696916,1742986153801,-500.0,0.00013971,2]
[356696917,1742986153822,-500.0,0.00014244,2]
[356696918,1742986153843,-500.0,0.00014245,2]
[356696919,1742986153866,-500.0,0.00014245,2]
[356696920,1742986153889,-182.10697592,0.00014245,2]
[356696921,1742986153913,-500.0,0.00014245,2]
[356696922,1742986153936,-2330.73737522,0.00014314,2]
[356696923,1742986153958,-500.0,0.00014518,2]
[356696924,1742986153978,-500.0,0.00014519,2]
[356696925,1742986154001,-500.0,0.00014519,2]
[356696926,1742986154023,-500.0,0.00014519,2]
[356696927,1742986154044,-500.0,0.00014792,2]
[356696928,1742986154065,-500.0,0.00014793,2]
[356696929,1742986154087,-500.0,0.00014793,2]
[356696930,1742986154108,-500.0,0.00014793,2]
[356696931,1742986154129,-160.0,0.00014836,2]
[356696932,1742986154150,-160.0,0.00014864,2]
[356696933,1742986154172,-834.83451184,0.00014864,2]
[356696934,1742986154193,-19600.0,0.00015,2]
[356696935,1742986154214,-500.0,0.00015066,2]
[356696936,1742986154235,-500.0,0.00015067,2]
[356696937,1742986154258,-376.81359065,0.00015067,2]
[356696938,1742986154279,-500.0,0.00015067,2]
[356696939,1742986154301,-500.0,0.0001534,2]
[356696940,1742986154323,-500.0,0.00015341,2]
[356696941,1742986154344,-500.0,0.00015341,2]
[356696942,1742986154366,-2330.73737522,0.00015521,2]
[356696943,1742986154387,-500.0,0.00015614,2]
[356696944,1742986154407,-500.0,0.00015615,2]
[356696945,1742986154428,-500.0,0.00015615,2]
[356696946,1742986154449,-500.0,0.00015888,2]
[356696947,1742986154472,-500.0,0.00015889,2]
[356696948,1742986154492,-500.0,0.00015889,2]
[356696949,1742986154512,-3747.26485754,0.00015924,2]
[356696950,1742986154533,-500.0,0.00016162,2]
[356696951,1742986154555,-500.0,0.00016163,2]
[356696952,1742986154576,-500.0,0.00016163,2]
[356696953,1742986154598,-500.0,0.00016436,2]
[356696954,1742986154618,-500.0,0.00016437,2]
[356696955,1742986154638,-591.32,0.00016437,2]
[356696956,1742986154659,-500.0,0.0001671,2]
[356696957,1742986154679,-500.0,0.00016711,2]
[356696958,1742986154701,-2330.73737522,0.00016728,2]
[356696959,1742986154723,-339.09415904,0.00016984,2]
[356696960,1742986154997,500.0,0.00011231,2]
[356696961,1742986159945,500.0,0.00011231,2]
[356696962,1742986160269,500.0,0.00011505,2]
[356696963,1742986160516,525.19,0.00011779,2]
[356696964,1742986163992,595.47,0.00011231,2]
[356696965,1742986184137,625.67509651,0.00011231,2]
[356696966,1742986189369,500.0,0.00011231,2]
[356696968,1742986203665,500.0,0.00012117,2]
[356696969,1742986204814,500.0,0.00012117,2]
[356696970,1742986207964,500.0,0.00012117,2]
[356696971,1742986212568,500.0,0.00011231,2]
[356696972,1742986212819,500.0,0.00011505,2]
[356696973,1742986213058,500.0,0.00011779,2]
[356696993,1742986232564,-311.76538274,0.00014966,2]
[356696994,1742986232574,-311.76538272,0.00015992,2]
[356696995,1742986232584,-169.4732242,0.0001673,2]
[356696996,1742986232594,-165.59554927,0.00016984,2]
[356696997,1742986232603,-500.0,0.00016985,2]
[356696998,1742986232612,-834.83451184,0.00016985,2]
[356696999,1742986232621,-162.848,0.00016999,2]
[356697000,1742986232630,-2500.0,0.00017,2]
[356697001,1742986232640,-311.76538272,0.00017018,2]
[356697002,1742986232649,-418.40181814,0.00017139,2]
[356697003,1742986232659,-500.0,0.00017259,2]
[356697004,1742986232668,-151.89033171,0.00017533,2]
[356697005,1742986232677,-1000.0,0.00017596,2]
[356697006,1742986232687,-353.45012819,0.00017596,2]
[356697007,1742986232696,-1000.0,0.00017596,2]
[356697008,1742986232705,-318.343916,0.00017804,2]
[356697009,1742986232715,-151.0,0.00017863,2]
[356697010,1742986232724,-151.0,0.00017863,2]
[356697011,1742986232733,-2330.73737522,0.00017934,2]
[356697012,1742986232742,-150.0,0.00017957,2]
[356697013,1742986232751,-151.0952036,0.00018,2]
[356697015,1742986232763,-2500.0,0.00018,2]
[356697017,1742986232773,-311.76538272,0.00018044,2]
[356697018,1742986232783,-500.0,0.0001814,2]
[356697020,1742986232792,-360.68841515,0.0001824,2]
[356697022,1742986232802,-500.0,0.0001824,2]
[356697023,1742986232812,-500.0,0.0001824,2]
[356697025,1742986232821,-448.74953998,0.0001824,2]
[356697027,1742986232831,-500.0,0.0001824,2]
[356697029,1742986232842,-500.0,0.0001824,2]
[356697030,1742986232852,-500.0,0.0001824,2]
[356697032,1742986232861,-500.0,0.0001824,2]
[356697034,1742986232871,-500.0,0.0001824,2]
[356697035,1742986232880,-500.0,0.0001824,2]
[356697037,1742986232891,-500.0,0.0001824,2]
[356697038,1742986232900,-500.0,0.0001824,2]
[356697039,1742986232910,-500.0,0.0001824,2]
[356697040,1742986232919,-500.0,0.0001824,2]
[356697041,1742986232928,-500.0,0.0001824,2]
[356697042,1742986232937,-500.0,0.0001824,2]
[356697043,1742986232947,-500.0,0.0001824,2]
[356697044,1742986232957,-500.0,0.0001824,2]
[356697045,1742986232966,-500.0,0.0001824,2]
[356697046,1742986232975,-913.94199366,0.0001824,2]
[356697047,1742986232985,-639.31158485,0.0001824,2]
[356697048,1742986232994,-151.0952036,0.00018247,2]
[356697049,1742986233003,-151.09520359,0.00018247,2]
[356697050,1742986233012,-151.0952036,0.00018493,2]
[356697051,1742986233022,-151.09520359,0.00018493,2]
[356697052,1742986233031,-2162.7910125,0.00018597,2]
[356697053,1742986233041,-159.22,0.000186,2]
[356697054,1742986233051,-501.1609396,0.00018673,2]
[356697055,1742986233061,-500.0,0.00018673,2]
[356697056,1742986233070,-500.0,0.00018673,2]
[356697057,1742986233080,-500.0,0.00018673,2]
[356697058,1742986233090,-500.0,0.00018673,2]
[356697059,1742986233099,-500.0,0.00018673,2]
[356697060,1742986233113,-551.0670356,0.00018673,2]
[356697061,1742986233123,-500.0,0.00018673,2]
[356697062,1742986233133,-500.0,0.00018673,2]
[356697063,1742986233142,-500.0,0.00018673,2]
[356697064,1742986233152,-500.92642587,0.00018673,2]
[356697065,1742986233162,-500.0,0.00018673,2]
[356697066,1742986233171,-500.0,0.00018673,2]
[356697067,1742986233181,-500.0,0.00018673,2]
[356697068,1742986233190,-500.0,0.00018673,2]
[356697069,1742986233200,-500.0,0.00018673,2]
[356697070,1742986233209,-500.0,0.00018673,2]
[356697071,1742986233219,-500.0,0.00018673,2]
[356697072,1742986233228,-500.0,0.00018673,2]
[356697073,1742986233238,-500.0,0.00018673,2]
[356697074,1742986233248,-500.0,0.00018673,2]
[356697075,1742986233257,-500.0,0.00018673,2]
[356697076,1742986233267,-500.0,0.00018673,2]
[356697077,1742986233277,-500.0,0.00018673,2]
[356697078,1742986233287,-500.0,0.00018673,2]
[356697079,1742986233297,-500.0,0.00018673,2]
[356697080,1742986233308,-164.83074132,0.00018698,2]
[356697081,1742986233318,-8491.2093356,0.00018699,2]
[356697082,1742986233328,-15692.54697563,0.00018699,2]
[356697083,1742986233364,-25.28572168,0.00018699,2]
[356697104,1742986240140,-151.0,0.00018673,2]
[356697105,1742986240151,-2200.33239686,0.00018699,2]
[356697106,1742986240161,-14360.61955184,0.00018699,2]
[356697107,1742986240175,-1091.16643177,0.00018699,2]
[356697121,1742986240560,-2206.21069012,0.00018699,2]
[356697124,1742986241265,500.0,0.0001123,2]
[356697125,1742986241300,500.0,0.00011504,2]
[356697126,1742986241466,-0.02037482,0.00018673,2]
[356697127,1742986241558,-150.97962518,0.00018673,2]
[356697128,1742986241567,-11367.71662821,0.00018699,2]
[356697129,1742986241595,403.00438856,0.00011778,2]
[356697159,1742986246618,-11498.2692764,0.00018699,2]
[356697160,1742986246629,-11000.0,0.00018699,2]
[356697161,1742986304336,500.0,0.0001123,2]
[356697162,1742986304566,500.0,0.00011504,2]
[356697163,1742986328247,500.0,0.0001123,2]
[356697164,1742986328614,500.0,0.00011504,2]
[356697165,1742986329094,457.7,0.00011778,2]
[356697167,1742987230110,-201.1489117,0.00010629,2]
[356697168,1742987230133,-990.38,0.00010741,2]
[356697169,1742987230156,-165.06,0.00010959,2]
[356697170,1742987230178,-267.79081371,0.00010959,2]
[356697171,1742987234111,-524.2730503,0.00010959,2]
[356697172,1742987356148,-3320.12682726,0.00010762,2]
[356697173,1742987356171,-300.0,0.0001087,2]
[356697174,1742987356192,-7780.1844901,0.00010871,2]
[356697175,1742987356212,-211.5716141,0.0001113,2]
[356697176,1742987356233,-500.0,0.00011231,2]
[356697177,1742987356252,-500.0,0.00011505,2]
[356697178,1742987356273,-250.0,0.00011572,2]
[356697179,1742987356293,-156.2105526,0.00011588,2]
[356697180,1742987356314,-500.0,0.00011588,2]
[356697181,1742987356336,-500.0,0.00011588,2]
[356697182,1742987356358,-500.0,0.00011588,2]
[356697183,1742987356378,-572.77,0.00011588,2]
[356697184,1742987356398,-4195.34422036,0.00011589,2]
[356697185,1742987356428,-20704.65577964,0.00011589,2]
[356697186,1742987356448,-500.0,0.00011779,2]
[356697187,1742987356468,-500.0,0.00011862,2]
[356697188,1742987356488,-500.0,0.00011862,2]
[356697189,1742987356508,-420.0,0.00011946,2]
[356697190,1742987356528,-448.32805524,0.00011953,2]
[356697191,1742987356548,-258.16253251,0.00011954,2]
[356697192,1742987356567,-1599.98908637,0.00011954,2]
[356697193,1742987356588,-300.56811144,0.00012,2]
[356697194,1742987356608,-500.0,0.00012136,2]
[356697195,1742987356628,-152.0,0.00012177,2]
[356697196,1742987356648,-297.85328393,0.00012336,2]
[356697197,1742987356669,-500.0,0.00012336,2]
[356697198,1742987356688,-520.70022056,0.00012336,2]
[356697199,1742987356709,-500.0,0.00012336,2]
[356697200,1742987356730,-513.5837248,0.00012336,2]
[356697201,1742987356754,-521.77370324,0.00012336,2]
[356697202,1742987356776,-500.0,0.0001241,2]
[356697203,1742987356796,-500.0,0.0001261,2]
[356697204,1742987356816,-500.0,0.00012684,2]
[356697205,1742987356836,-500.0,0.00012895,2]
[356697206,1742987356857,-506.08151912,0.00012895,2]
[356697207,1742987356877,-329.59,0.00012958,2]
[356697208,1742987356899,-363.0,0.00013129,2]
[356697209,1742987356920,-631.26133228,0.00013303,2]
[356697210,1742987356941,-2173.02204757,0.000134,2]
[356697211,1742987356962,-2173.02204755,0.000134,2]
[356697212,1742987356983,-500.0,0.00013499,2]
[356697213,1742987357004,-500.0,0.00013499,2]
[356697214,1742987357028,-366.74167768,0.00013499,2]
[356697215,1742987357049,-191.39,0.00013499,2]
[356697216,1742987357070,-518.87135005,0.00013499,2]
[356697217,1742987357092,-500.0,0.00013499,2]
[356697218,1742987357113,-500.0,0.00013499,2]
[356697219,1742987357133,-500.0,0.00013499,2]
[356697220,1742987357154,-512.06182666,0.00013499,2]
[356697221,1742987357175,-500.0,0.00013499,2]
[356697222,1742987357196,-500.0,0.00013499,2]
[356697223,1742987357216,-430.13185431,0.00013499,2]
[356697224,1742987357237,-500.0,0.00013499,2]
[356697225,1742987357259,-500.0,0.00013499,2]
[356697226,1742987357280,-1518.59,0.00013499,2]
[356697227,1742987357300,-500.0,0.00013499,2]
[356697228,1742987357320,-500.0,0.00013499,2]
[356697229,1742987357340,-500.0,0.00013499,2]
[356697230,1742987357360,-510.0528051,0.00013499,2]
[356697231,1742987357380,-208.15931692,0.00013499,2]
[356697232,1742987357400,-522.09695031,0.00013499,2]
[356697233,1742987357420,-500.0,0.00013499,2]
[356697234,1742987357438,-500.0,0.00013499,2]
[356697235,1742987357457,-524.11982446,0.00013499,2]
[356697236,1742987357478,-500.0,0.00013499,2]
[356697237,1742987357496,-500.0,0.00013499,2]
[356697238,1742987357516,-500.0,0.00013499,2]
[356697239,1742987357536,-526.738679,0.00013499,2]
[356697240,1742987357557,-500.0,0.00013499,2]
[356697241,1742987357577,-500.0,0.00013499,2]
[356697242,1742987357597,-647.75,0.00013499,2]
[356697243,1742987357617,-500.0,0.00013499,2]
[356697244,1742987357637,-156.8,0.00013499,2]
[356697245,1742987357657,-778.31372816,0.00013599,2]
[356697246,1742987357677,-500.0,0.00013671,2]
[356697247,1742987357697,-244.07302639,0.00013671,2]
[356697248,1742987358136,-88.45430247,0.00013671,2]
[356697249,1742987358158,-500.0,0.00013672,2]
[356697250,1742987358184,-626.59,0.00013672,2]
[356697251,1742987358208,-500.0,0.00013672,2]
[356697252,1742987358343,-500.0,0.00013672,2]
[356697253,1742987358366,-500.0,0.00013672,2]
[356697254,1742987358387,-513.13750129,0.00013672,2]
[356697255,1742987358410,-500.0,0.00013672,2]
[356697256,1742987358432,-500.0,0.00013672,2]
[356697257,1742987358454,-500.0,0.00013672,2]
[356697258,1742987358474,-381.4,0.00013672,2]
[356697259,1742987358497,-500.0,0.00013672,2]
[356697260,1742987358519,-500.0,0.00013672,2]
[356697261,1742987358539,-500.0,0.00013672,2]
[356697262,1742987358560,-500.0,0.00013672,2]
[356697263,1742987358581,-500.0,0.00013672,2]
[356697264,1742987358601,-623.59,0.00013672,2]
[356697265,1742987358624,-500.0,0.00013672,2]
[356697266,1742987358644,-316.35003532,0.00013672,2]
[356697267,1742987358666,-500.0,0.00013672,2]
[356697268,1742987358687,-574.96545309,0.00013672,2]
[356697269,1742987358708,-515.68368821,0.00013672,2]
[356697270,1742987358729,-500.0,0.00013672,2]
[356697271,1742987358752,-500.0,0.00013672,2]
[356697272,1742987358774,-500.0,0.00013672,2]
[356697273,1742987358796,-500.0,0.00013673,2]
[356697274,1742987358818,-502.15322122,0.00013673,2]
[356697275,1742987358838,-501.64342316,0.00013673,2]
[356697276,1742987358860,-504.53610861,0.00013673,2]
[356697277,1742987358882,-426.73202122,0.00013673,2]
[356697278,1742987358903,-500.0,0.00013673,2]
[356697279,1742987358924,-157.81457236,0.00013673,2]
[356697280,1742987358945,-500.0,0.00013673,2]
[356697281,1742987358966,-500.0,0.00013673,2]
[356697282,1742987358987,-500.0,0.00013673,2]
[356697283,1742987359008,-500.0,0.00013673,2]
[356697284,1742987359030,-177.15951266,0.00013673,2]
[356697285,1742987359051,-461.80402664,0.00013673,2]
[356697286,1742987359073,-170.30034402,0.00013673,2]
[356697287,1742987359100,-504.97646592,0.00013673,2]
[356697288,1742987359123,-500.0,0.00013673,2]
[356697289,1742987359145,-500.0,0.00013673,2]
[356697290,1742987359167,-500.0,0.00013673,2]
[356697291,1742987359195,-500.0,0.00013673,2]
[356697292,1742987359216,-508.30816658,0.00013673,2]
[356697293,1742987359239,-503.92088882,0.00013673,2]
[356697294,1742987359262,-501.80846169,0.00013673,2]
[356697295,1742987359283,-503.26311424,0.00013673,2]
[356697296,1742987359305,-508.00719248,0.00013673,2]
[356697297,1742987359327,-160.11522601,0.00013673,2]
[356697298,1742987359348,-500.0,0.00013673,2]
[356697299,1742987359369,-500.0,0.00013673,2]
[356697300,1742987359391,-504.81472838,0.00013673,2]
[356697301,1742987359413,-500.0,0.00013673,2]
[356697302,1742987359435,-163.67822422,0.00013673,2]
[356697303,1742987359456,-184.81877418,0.00013673,2]
[356697304,1742987359476,-417.46019441,0.00013673,2]
[356697305,1742987359496,-500.0,0.00013673,2]
[356697306,1742987359517,-166.6636714,0.00013673,2]
[356697307,1742987359536,-500.79552505,0.00013673,2]
[356697308,1742987359556,-502.59778673,0.00013673,2]
[356697309,1742987359576,-514.64529008,0.00013673,2]
[356697310,1742987359597,-211.27203577,0.00013673,2]
[356697311,1742987359618,-292.51183982,0.00013673,2]
[356697312,1742987359638,-500.0,0.00013673,2]
[356697313,1742987359659,-500.0,0.00013673,2]
[356697314,1742987359679,-500.0,0.00013673,2]
[356697315,1742987359700,-487.36421296,0.00013673,2]
[356697316,1742987359725,-500.0,0.00013673,2]
[356697317,1742987359756,-500.0,0.00013673,2]
[356697318,1742987359780,-500.0,0.00013673,2]
[356697319,1742987359804,-500.0,0.00013673,2]
[356697320,1742987359824,-160.71803703,0.00013673,2]
[356697321,1742987359845,-600.0,0.00013691,2]
[356697322,1742987359866,-500.0,0.00013698,2]
[356697323,1742987359886,-500.0,0.00013698,2]
[356697324,1742987359907,-500.0,0.00013698,2]
[356697325,1742987359929,-500.0,0.00013698,2]
[356697326,1742987359949,-500.0,0.00013698,2]
[356697327,1742987359970,-500.0,0.00013698,2]
[356697328,1742987359991,-500.0,0.00013698,2]
[356697329,1742987360012,-4628.33145564,0.00013698,2]
[356697330,1742987360033,-949.485618,0.00013699,2]
[356697331,1742987360054,-173.048035,0.00013699,2]
[356697332,1742987360075,-151.0,0.00013699,2]
[356697333,1742987360098,-1629.56028604,0.00013699,2]
[356697334,1742987360120,-500.0,0.00013699,2]
[356697335,1742987360143,-1629.56028604,0.00013699,2]
[356697336,1742987360163,-500.0,0.00013699,2]
[356697337,1742987360186,-1629.56028604,0.00013699,2]
[356697338,1742987360207,-1629.56028604,0.00013699,2]
[356697339,1742987360227,-500.0,0.00013699,2]
[356697340,1742987360248,-1629.56028604,0.00013699,2]
[356697341,1742987360269,-1629.56028604,0.00013699,2]
[356697342,1742987360289,-545.17698391,0.00013699,2]
[356697343,1742987360310,-1629.56028604,0.00013699,2]
[356697344,1742987360330,-1629.56028604,0.00013699,2]
[356697345,1742987360351,-1629.56028604,0.00013699,2]
[356697346,1742987360372,-1629.56028604,0.00013699,2]
[356697347,1742987360393,-1629.56028604,0.00013699,2]
[356697348,1742987360414,-1629.56028604,0.00013699,2]
[356697349,1742987360435,-1629.56028604,0.00013699,2]
[356697350,1742987360455,-1629.56028604,0.00013699,2]
[356697351,1742987360480,-1629.56028604,0.00013699,2]
[356697352,1742987360502,-1629.56028604,0.00013699,2]
[356697353,1742987360526,-1629.56028604,0.00013699,2]
[356697354,1742987360547,-1629.56028604,0.00013699,2]
[356697355,1742987360568,-1629.56028604,0.00013699,2]
[356697356,1742987360589,-1629.56028604,0.00013699,2]
[356697357,1742987360610,-1629.56028604,0.00013699,2]
[356697358,1742987360632,-1629.56028604,0.00013699,2]
[356697359,1742987360653,-1629.56028604,0.00013699,2]
[356697360,1742987360675,-1629.56028604,0.00013699,2]
[356697361,1742987360696,-1629.56028604,0.00013699,2]
[356697362,1742987360718,-1629.56028604,0.00013699,2]
[356697363,1742987360739,-1629.56028604,0.00013699,2]
[356697364,1742987360760,-1629.56028604,0.00013699,2]
[356697365,1742987360782,-1629.56028604,0.00013699,2]
[356697366,1742987360803,-1629.56028604,0.00013699,2]
[356697367,1742987360825,-1629.56028604,0.00013699,2]
[356697368,1742987360847,-1629.56028604,0.00013699,2]
[356697369,1742987360869,-1629.56028604,0.00013699,2]
[356697370,1742987360891,-1629.56028604,0.00013699,2]
[356697371,1742987360912,-1629.56028604,0.00013699,2]
[356697372,1742987360934,-1629.56028604,0.00013699,2]
[356697373,1742987360957,-1629.56028604,0.00013699,2]
[356697374,1742987360979,-1629.56028604,0.00013699,2]
[356697375,1742987361003,-1629.56028604,0.00013699,2]
[356697376,1742987361026,-1629.56028604,0.00013699,2]
[356697377,1742987361048,-1629.56028604,0.00013699,2]
[356697378,1742987361069,-1629.56028604,0.00013699,2]
[356697379,1742987361092,-1629.56028604,0.00013699,2]
[356697380,1742987361117,-1629.56028604,0.00013699,2]
[356697381,1742987361138,-1629.56028604,0.00013699,2]
[356697382,1742987361162,-1629.56028604,0.00013699,2]
[356697383,1742987361185,-1629.56028604,0.00013699,2]
[356697384,1742987361208,-1629.56028604,0.00013699,2]
[356697385,1742987361230,-1629.56028604,0.00013699,2]
[356697386,1742987361252,-1629.56028604,0.00013699,2]
[356697387,1742987361276,-1629.56028604,0.00013699,2]
[356697388,1742987361298,-1629.56028604,0.00013699,2]